[Event "Turning Torso Chess Event 2021"]
[Site "Malmoe"]
[Date "2021.08.22"]
[Round "13.5"]
[White "Smith, Axel"]
[Black "Schussler, Harry"]
[Result "1/2-1/2"]
[ECO "D36"]
[WhiteElo "2451"]
[BlackElo "2410"]
[Annotator "ChessBase"]
[PlyCount "52"]
[EventDate "2021.08.20"]
[EventType "tourn"]
[EventCountry "SWE"]
[SourceTitle "playchess.com"]
[Source "ChessBase"]
[SourceQuality "1"]
[TimeControl "900+5"]

1. d4 {[%emt 0:00:01]} Nf6 {[%emt 0:00:13]} 2. c4 {[%emt 0:00:01]} e6 {[%emt 0:
00:02]} 3. Nc3 {[%emt 0:00:01]} d5 {[%emt 0:00:07]} 4. cxd5 {[%emt 0:00:04]}
exd5 {[%emt 0:00:03]} 5. Bg5 {[%emt 0:00:02]} c6 {[%emt 0:00:15]} 6. Qc2 {
[%emt 0:00:10]} Be7 {[%emt 0:00:24]} 7. e3 {[%emt 0:00:02]} Nbd7 {[%emt 0:00:
38]} 8. Bd3 {[%emt 0:00:03]} Nf8 {[%emt 0:00:08]} 9. Nge2 {[%emt 0:00:10]} Ne6
{[%emt 0:00:06]} 10. Bh4 {[%emt 0:00:10]} g6 {[%emt 0:00:08]} 11. O-O {[%emt 0:
00:47]} O-O {[%emt 0:00:06]} 12. Rad1 {[%emt 0:01:24]} b6 {[%emt 0:00:37]} 13.
f3 {[%emt 0:00:26]} Bb7 {[%emt 0:00:18]} 14. Bf2 {[%emt 0:00:22]} c5 {[%emt 0:
00:41]} 15. dxc5 {[%emt 0:00:25]} bxc5 {[%emt 0:00:31]} 16. Bc4 {[%emt 0:02:51]
} Qa5 {[%emt 0:01:53]} 17. Nxd5 {[%emt 0:00:20]} Nxd5 {[%emt 0:00:08]} 18. Bxd5
{[%emt 0:00:02]} Bxd5 {[%emt 0:00:08]} 19. Rxd5 {[%emt 0:00:02]} Qxa2 {[%emt 0:
00:04]} 20. Nc3 {[%emt 0:00:17]} Qa6 {[%emt 0:02:51]} 21. Rd7 {[%emt 0:00:10]}
Bf6 {[%emt 0:00:36]} 22. Nd5 {[%emt 0:00:29]} Bg7 {[%emt 0:00:12]} 23. Nc7 {
[%emt 0:04:13]} Qc6 {[%emt 0:02:14]} 24. Nxe6 {[%emt 0:00:08]} Qxd7 {[%emt 0:
00:03]} 25. Nxf8 {[%emt 0:00:06]} Bxf8 {[%emt 0:00:02]} 26. e4 {[%emt 0:00:36]}
Rb8 {[%emt 0:00:07]} 1/2-1/2

[Event "Turning Torso Chess Event 2021"]
[Site "Malmoe"]
[Date "2021.08.22"]
[Round "17.1"]
[White "Blomqvist, Erik"]
[Black "Agrest, Evgenij"]
[Result "1/2-1/2"]
[ECO "B13"]
[WhiteElo "2537"]
[BlackElo "2568"]
[Annotator "ChessBase"]
[PlyCount "67"]
[EventDate "2021.08.20"]
[EventType "tourn"]
[EventCountry "SWE"]
[SourceTitle "playchess.com"]
[Source "ChessBase"]
[SourceQuality "1"]
[TimeControl "900+5"]

1. e4 {[%emt 0:00:04]} c6 {[%emt 0:00:02]} 2. d4 {[%emt 0:00:02]} d5 {[%emt 0:
00:02]} 3. exd5 {[%emt 0:00:02]} cxd5 {[%emt 0:00:02]} 4. Bd3 {[%emt 0:00:02]}
Nc6 {[%emt 0:00:03]} 5. c3 {[%emt 0:00:01]} Nf6 {[%emt 0:00:03]} 6. Bf4 {
[%emt 0:00:03]} Bg4 {[%emt 0:01:02]} 7. Qb3 {[%emt 0:00:03]} Qc8 {[%emt 0:00:
02]} 8. Nd2 {[%emt 0:00:04]} e6 {[%emt 0:00:18]} 9. Ngf3 {[%emt 0:00:03]} Nh5 {
[%emt 0:00:32]} 10. Be5 {[%emt 0:01:41]} f6 {[%emt 0:00:43]} 11. Bg3 {[%emt 0:
00:06]} g6 {[%emt 0:00:33]} 12. O-O-O {[%emt 0:00:37]} Bh6 {[%emt 0:00:27]} 13.
Be2 {[%emt 0:02:52]} Nf4 {[%emt 0:02:11]} 14. Bxf4 {[%emt 0:00:18]} Bxf4 {
[%emt 0:00:02]} 15. Kb1 {[%emt 0:03:04]} O-O {[%emt 0:03:10]} 16. Nf1 {[%emt 0:
01:16]} b5 {[%emt 0:00:49]} 17. g3 {[%emt 0:00:31]} Bh6 {[%emt 0:00:24]} 18. h3
{[%emt 0:01:04]} Bxf3 {[%emt 0:00:14]} 19. Bxf3 {[%emt 0:00:01]} Rb8 {[%emt 0:
00:31]} 20. Ne3 {[%emt 0:01:49]} Bxe3 {[%emt 0:00:58]} 21. fxe3 {[%emt 0:00:01]
} Na5 {[%emt 0:00:02]} 22. Qb4 {[%emt 0:00:19]} Nc4 {[%emt 0:00:08]} 23. e4 {
[%emt 0:00:05]} dxe4 {[%emt 0:00:43]} 24. Bxe4 {[%emt 0:00:01]} Qd7 {[%emt 0:
00:08]} 25. Rhe1 {[%emt 0:00:44]} a5 {[%emt 0:00:28]} 26. Qb3 {[%emt 0:00:00]}
Qd6 {[%emt 0:00:36]} 27. Bd3 {[%emt 0:00:51]} Rfc8 {[%emt 0:00:06]} 28. Qc2 {
[%emt 0:01:14]} Kf7 {[%emt 0:00:09]} 29. Qe2 {[%emt 0:00:08]} Rb6 {[%emt 0:00:
17]} 30. g4 {[%emt 0:00:05]} Qd5 {[%emt 0:01:04]} 31. Be4 {[%emt 0:00:01]} Qd6
{[%emt 0:00:02]} 32. Bd3 {[%emt 0:00:01]} Qd5 {[%emt 0:00:02]} 33. Be4 {
[%emt 0:00:01]} Qd6 {[%emt 0:00:01]} 34. Bd3 {[%emt 0:00:01]} 1/2-1/2

[Event "Turning Torso Chess Event 2021"]
[Site "Malmoe"]
[Date "2021.08.22"]
[Round "17.2"]
[White "Pantzar, Milton"]
[Black "Brynell, Stellan"]
[Result "1-0"]
[ECO "E15"]
[WhiteElo "2424"]
[BlackElo "2422"]
[Annotator "ChessBase"]
[PlyCount "103"]
[EventDate "2021.08.20"]
[EventType "tourn"]
[EventCountry "SWE"]
[SourceTitle "playchess.com"]
[Source "ChessBase"]
[SourceQuality "1"]
[TimeControl "900+5"]

1. d4 {[%emt 0:00:02]} Nf6 {[%emt 0:00:02]} 2. c4 {[%emt 0:00:03]} e6 {[%emt 0:
00:06]} 3. Nf3 {[%emt 0:00:17]} b6 {[%emt 0:00:10]} 4. g3 {[%emt 0:00:06]} Ba6
{[%emt 0:00:05]} 5. b3 {[%emt 0:00:05]} Bb7 {[%emt 0:00:02]} 6. Bg2 {[%emt 0:
00:08]} Bb4+ {[%emt 0:00:01]} 7. Bd2 {[%emt 0:00:06]} a5 {[%emt 0:00:01]} 8.
O-O {[%emt 0:00:25]} O-O {[%emt 0:00:02]} 9. Bc3 {[%emt 0:01:09]} d5 {[%emt 0:
00:11]} 10. Bb2 {[%emt 0:00:28]} Be7 {[%emt 0:01:17]} 11. Nc3 {[%emt 0:00:11]}
c5 {[%emt 0:02:39]} 12. cxd5 {[%emt 0:00:32]} Nxd5 {[%emt 0:00:03]} 13. dxc5 {
[%emt 0:01:52]} Nxc3 {[%emt 0:01:14]} 14. Bxc3 {[%emt 0:00:02]} Bxc5 {[%emt 0:
00:06]} 15. Rc1 {[%emt 0:02:59]} Qe7 {[%emt 0:04:16]} 16. Qc2 {[%emt 0:01:12]}
Ra7 {[%emt 0:00:59]} 17. Bd4 {[%emt 0:01:14]} Na6 {[%emt 0:00:50]} 18. Bxc5 {
[%emt 0:00:12]} Nxc5 {[%emt 0:00:05]} 19. Rfd1 {[%emt 0:00:47]} Be4 {[%emt 0:
00:15]} 20. Qb2 {[%emt 0:00:24]} Rd7 {[%emt 0:00:11]} 21. Ne5 {[%emt 0:00:48]}
Rxd1+ {[%emt 0:00:08]} 22. Rxd1 {[%emt 0:00:02]} Rd8 {[%emt 0:00:48]} 23. Rxd8+
{[%emt 0:00:34]} Qxd8 {[%emt 0:00:01]} 24. Bxe4 {[%emt 0:00:02]} Qd1+ {[%emt 0:
00:14]} 25. Kg2 {[%emt 0:00:02]} Nxe4 {[%emt 0:00:01]} 26. Nc4 {[%emt 0:01:21]}
f6 {[%emt 0:01:19]} 27. f3 {[%emt 0:00:08]} Nd6 {[%emt 0:01:06]} 28. Nxb6 {
[%emt 0:00:15]} h5 {[%emt 0:00:13]} 29. Nc4 {[%emt 0:00:18]} Nxc4 {[%emt 0:00:
31]} 30. bxc4 {[%emt 0:00:02]} Kf7 {[%emt 0:00:25]} 31. c5 {[%emt 0:00:11]} Qd5
{[%emt 0:00:05]} 32. Qc2 {[%emt 0:00:46]} Qc6 {[%emt 0:00:01]} 33. Qc4 {
[%emt 0:00:07]} a4 {[%emt 0:00:01]} 34. a3 {[%emt 0:00:09]} Ke7 {[%emt 0:00:03]
} 35. Kf2 {[%emt 0:00:09]} g5 {[%emt 0:00:03]} 36. h4 {[%emt 0:00:07]} gxh4 {
[%emt 0:00:06]} 37. gxh4 {[%emt 0:00:01]} Qc7 {[%emt 0:00:15]} 38. Ke3 {
[%emt 0:00:05]} Qe5+ {[%emt 0:00:06]} 39. Kd3 {[%emt 0:00:02]} Qb2 {[%emt 0:00:
06]} 40. Qxa4 {[%emt 0:00:05]} Qb1+ {[%emt 0:00:09]} 41. Qc2 {[%emt 0:00:07]}
Qa1 {[%emt 0:00:02]} 42. a4 {[%emt 0:00:11]} Kd7 {[%emt 0:00:01]} 43. c6+ {
[%emt 0:00:04]} Kc7 {[%emt 0:00:01]} 44. Qc4 {[%emt 0:00:02]} Qd1+ {[%emt 0:00:
11]} 45. Ke4 {[%emt 0:00:15]} Qd6 {[%emt 0:00:02]} 46. Qb5 {[%emt 0:00:15]} f5+
{[%emt 0:00:03]} 47. Ke3 {[%emt 0:00:03]} Qa3+ {[%emt 0:00:06]} 48. Kf2 {
[%emt 0:00:03]} Kd6 {[%emt 0:00:12]} 49. Qd3+ {[%emt 0:00:16]} Qxd3 {[%emt 0:
00:01]} 50. exd3 {[%emt 0:00:01]} f4 {[%emt 0:00:01]} 51. Ke2 {[%emt 0:00:09]}
Kxc6 {[%emt 0:00:02]} 52. Kd2 {[%emt 0:00:03]} 1-0

[Event "Turning Torso Chess Event 2021"]
[Site "Malmoe"]
[Date "2021.08.22"]
[Round "14.2"]
[White "Pantzar, Milton"]
[Black "Blomqvist, Erik"]
[Result "1-0"]
[ECO "E11"]
[WhiteElo "2424"]
[BlackElo "2537"]
[Annotator "RC"]
[PlyCount "91"]
[EventDate "2021.08.20"]
[EventType "tourn"]
[EventCountry "SWE"]
[SourceTitle "playchess.com"]
[Source "ChessBase"]
[SourceQuality "1"]
[TimeControl "900+5"]

1. d4 {[%emt 0:00:02]} Nf6 {[%emt 0:00:01]} 2. c4 {[%emt 0:00:02]} e6 {[%emt 0:
00:02]} 3. Nf3 {[%emt 0:00:04]} Bb4+ {[%emt 0:00:07]} 4. Nbd2 {[%emt 0:00:09]}
O-O {[%emt 0:00:02]} 5. a3 {[%emt 0:00:03]} Be7 {[%emt 0:00:02]} 6. e4 {
[%emt 0:00:04]} d6 {[%emt 0:00:02]} 7. Be2 {[%emt 0:00:15]} Nfd7 {[%emt 0:00:
03]} 8. b4 {[%emt 0:00:23]} e5 {[%emt 0:00:02]} 9. d5 {[%emt 0:00:06]} a5 {
[%emt 0:00:05]} 10. Bb2 {[%emt 0:00:03]} c5 {[%emt 0:00:11]} 11. b5 {[%emt 0:
00:14]} Nb6 {[%emt 0:00:04]} 12. Qc2 {[%emt 0:00:21]} f5 {[%emt 0:00:03]} 13.
exf5 {[%emt 0:02:24]} Bxf5 {[%emt 0:00:02]} 14. Bd3 {[%emt 0:00:01]} Bxd3 {
[%emt 0:00:16]} 15. Qxd3 {[%emt 0:00:02]} N8d7 {[%emt 0:00:11]} 16. Ne4 {
[%emt 0:00:38]} Qe8 {[%emt 0:00:46]} 17. Ke2 {[%emt 0:02:13]} Qg6 {[%emt 0:01:
05]} 18. Rag1 {[%emt 0:00:49]} Rf4 {[%emt 0:02:51]} 19. Nfd2 {[%emt 0:00:05]}
Raf8 {[%emt 0:00:01]} 20. f3 {[%emt 0:00:16]} Nf6 {[%emt 0:02:00]} 21. Nxf6+ {
[%emt 0:02:33]} Qxf6 {[%emt 0:01:31]} 22. Ne4 {[%emt 0:00:04]} Qg6 {[%emt 0:00:
01]} 23. Bc1 {[%emt 0:00:10]} R4f7 {[%emt 0:00:02]} 24. Bd2 {[%emt 0:00:19]}
Nd7 {[%emt 0:00:26]} 25. Bxa5 {[%emt 0:01:29]} b6 {[%emt 0:01:50]} 26. Bd2 {
[%emt 0:00:03]} Ra8 {[%emt 0:00:01]} 27. h4 {[%emt 0:00:38]} Rff8 {[%emt 0:00:
39]} 28. h5 {[%emt 0:00:08]} Qf7 {[%emt 0:00:19]} 29. g4 {[%emt 0:00:23]} Ra4 {
[%emt 0:00:08]} 30. g5 {[%emt 0:00:28]} Qe8 {[%emt 0:02:09]} 31. Bc1 {[%emt 0:
00:31]} Qc8 {[%emt 0:00:49]} 32. Kd1 {[%emt 0:00:08]} Nb8 {[%emt 0:00:56]} 33.
Rg3 {[%emt 0:00:15]} Qf5 {[%emt 0:00:24]} 34. Kc2 {[%emt 0:00:22]} Nd7 {
[%emt 0:00:15]} 35. Kb3 {[%emt 0:00:27]} Ra7 {[%emt 0:00:07]} 36. Rhg1 {
[%emt 0:00:13]} Kh8 {[%emt 0:00:20]} 37. Rh1 {[%emt 0:00:12]} Rg8 {[%emt 0:00:
10]} 38. Qf1 {[%emt 0:00:20]} Raa8 {[%emt 0:00:02]} 39. Qh3 {[%emt 0:00:02]}
Raf8 {[%emt 0:00:01]} 40. h6 {[%emt 0:00:47]} g6 {[%emt 0:00:09]} 41. Bd2 {
[%emt 0:00:07]} Rf7 {[%emt 0:00:03]} 42. Qg2 {[%emt 0:00:09]} Ra8 {[%emt 0:00:
04]} 43. Ra1 {[%emt 0:00:10]} Rff8 {[%emt 0:00:02]} 44. Qe2 {[%emt 0:00:08]}
Ra7 {[%emt 0:00:01]} 45. a4 {[%emt 0:00:07]} Rfa8 {[%emt 0:00:01]} 46. Qe1 {
[%emt 0:00:05]} 1-0

[Event "Turning Torso Chess Event 2021"]
[Site "Malmoe"]
[Date "2021.08.22"]
[Round "17.3"]
[White "Westerberg, Jonathan"]
[Black "Grandelius, Nils"]
[Result "1/2-1/2"]
[ECO "B15"]
[WhiteElo "2526"]
[BlackElo "2666"]
[Annotator "ChessBase"]
[PlyCount "49"]
[EventDate "2021.08.20"]
[EventType "tourn"]
[EventCountry "SWE"]
[SourceTitle "playchess.com"]
[Source "ChessBase"]
[SourceQuality "1"]
[TimeControl "900+5"]

1. e4 {[%emt 0:00:06]} c6 {[%emt 0:00:24]} 2. d4 {[%emt 0:01:20]} d5 {[%emt 0:
00:02]} 3. Nc3 {[%emt 0:00:02]} dxe4 {[%emt 0:00:08]} 4. Nxe4 {[%emt 0:00:01]}
Nf6 {[%emt 0:00:02]} 5. Nxf6+ {[%emt 0:00:17]} exf6 {[%emt 0:00:02]} 6. Bc4 {
[%emt 0:00:46]} Na6 {[%emt 0:00:33]} 7. c3 {[%emt 0:00:41]} Nc7 {[%emt 0:01:41]
} 8. Bf4 {[%emt 0:01:01]} Nd5 {[%emt 0:00:19]} 9. Bg3 {[%emt 0:00:34]} Be6 {
[%emt 0:00:12]} 10. Bb3 {[%emt 0:00:11]} h5 {[%emt 0:01:40]} 11. h3 {[%emt 0:
00:26]} h4 {[%emt 0:00:27]} 12. Bh2 {[%emt 0:00:02]} Bd6 {[%emt 0:00:04]} 13.
Bxd6 {[%emt 0:00:04]} Qxd6 {[%emt 0:00:02]} 14. Ne2 {[%emt 0:00:02]} a5 {
[%emt 0:01:43]} 15. Qd2 {[%emt 0:03:04]} a4 {[%emt 0:00:13]} 16. Bc2 {[%emt 0:
00:02]} b5 {[%emt 0:00:18]} 17. f4 {[%emt 0:01:01]} Nb6 {[%emt 0:01:16]} 18.
O-O {[%emt 0:00:52]} Nc4 {[%emt 0:00:08]} 19. Qc1 {[%emt 0:00:02]} f5 {[%emt 0:
00:28]} 20. b3 {[%emt 0:00:14]} Nb6 {[%emt 0:02:31]} 21. Qe3 {[%emt 0:00:37]}
O-O {[%emt 0:00:35]} 22. Qf2 {[%emt 0:00:31]} Qd8 {[%emt 0:00:17]} 23. Kh2 {
[%emt 0:00:40]} g6 {[%emt 0:00:06]} 24. Ng1 {[%emt 0:00:27]} Nd5 {[%emt 0:00:
22]} 25. bxa4 {[%emt 0:00:47]} 1/2-1/2

[Event "Turning Torso Chess Event 2021"]
[Site "Malmoe"]
[Date "2021.08.22"]
[Round "11.2"]
[White "Hector, Jonny"]
[Black "Pantzar, Milton"]
[Result "1-0"]
[ECO "B11"]
[WhiteElo "2465"]
[BlackElo "2424"]
[Annotator "RC"]
[PlyCount "101"]
[EventDate "2021.08.20"]
[EventType "tourn"]
[EventCountry "SWE"]
[SourceTitle "playchess.com"]
[Source "ChessBase"]
[SourceQuality "1"]
[TimeControl "900+5"]

1. e4 {[%emt 0:00:04]} c6 {[%emt 0:00:02]} 2. Nc3 {[%emt 0:00:03]} d5 {[%emt 0:
00:02]} 3. Nf3 {[%emt 0:00:03]} dxe4 {[%emt 0:00:04]} 4. Nxe4 {[%emt 0:00:03]}
Nf6 {[%emt 0:00:03]} 5. Qe2 {[%emt 0:00:03]} Bg4 {[%emt 0:00:15]} 6. h3 {
[%emt 0:00:08]} Bh5 {[%emt 0:00:22]} 7. Nxf6+ {[%emt 0:00:04]} gxf6 {[%emt 0:
00:03]} 8. g4 {[%emt 0:00:18]} Bg6 {[%emt 0:00:03]} 9. d3 {[%emt 0:00:03]} Nd7
{[%emt 0:00:10]} 10. Bd2 {[%emt 0:00:11]} Nb6 {[%emt 0:00:19]} 11. Bg2 {
[%emt 0:00:24]} e6 {[%emt 0:00:53]} 12. O-O-O {[%emt 0:00:23]} Qd5 {[%emt 0:00:
23]} 13. Kb1 {[%emt 0:00:55]} O-O-O {[%emt 0:01:42]} 14. Nh4 {[%emt 0:00:19]}
Qb5 {[%emt 0:00:20]} 15. Nxg6 {[%emt 0:00:17]} hxg6 {[%emt 0:00:25]} 16. c4 {
[%emt 0:00:36]} Qa4 {[%emt 0:02:45]} 17. Bc3 {[%emt 0:00:20]} e5 {[%emt 0:01:
33]} 18. b3 {[%emt 0:00:18]} Qa3 {[%emt 0:00:36]} 19. d4 {[%emt 0:00:03]} Na4 {
[%emt 0:05:04]} 20. Ba1 {[%emt 0:00:19]} Qb4 {[%emt 0:00:13]} 21. dxe5 {
[%emt 0:01:33]} Bc5 {[%emt 0:00:14]} 22. e6 {[%emt 0:01:28]} Nc3+ {[%emt 0:00:
14]} 23. Bxc3 {[%emt 0:00:02]} Qxc3 {[%emt 0:00:01]} 24. exf7 {[%emt 0:00:29]}
Bd4 {[%emt 0:00:28]} 25. Rxd4 {[%emt 0:00:17]} Qxd4 {[%emt 0:00:10]} 26. Be4 {
[%emt 0:01:36]} f5 {[%emt 0:00:09]} 27. gxf5 {[%emt 0:00:06]} g5 {[%emt 0:00:
02]} 28. Qe3 {[%emt 0:00:56]} a6 {[%emt 0:00:34]} 29. Bc2 {[%emt 0:00:17]} Qxe3
{[%emt 0:00:11]} 30. fxe3 {[%emt 0:00:01]} Rdf8 {[%emt 0:00:02]} 31. Rg1 {
[%emt 0:00:06]} Rxh3 {[%emt 0:00:04]} 32. e4 {[%emt 0:00:02]} Re3 {[%emt 0:00:
05]} 33. Rxg5 {[%emt 0:00:22]} Rxf7 {[%emt 0:00:02]} 34. Rg2 {[%emt 0:00:24]}
Kc7 {[%emt 0:00:06]} 35. Kc1 {[%emt 0:00:04]} Kd6 {[%emt 0:00:05]} 36. Kd2 {
[%emt 0:00:42]} Rh3 {[%emt 0:00:02]} 37. Rg6+ {[%emt 0:01:30]} Ke5 {[%emt 0:00:
01]} 38. Re6+ {[%emt 0:00:02]} Kd4 {[%emt 0:00:14]} 39. Rd6+ {[%emt 0:00:02]}
Ke5 {[%emt 0:00:01]} 40. Rd8 {[%emt 0:00:02]} Rg7 {[%emt 0:00:09]} 41. Bd3 {
[%emt 0:00:07]} Rgg3 {[%emt 0:00:11]} 42. c5 {[%emt 0:00:22]} Rg2+ {[%emt 0:00:
06]} 43. Kc3 {[%emt 0:00:01]} Rxa2 {[%emt 0:00:02]} 44. Re8+ {[%emt 0:00:03]}
Kf6 {[%emt 0:00:02]} 45. e5+ {[%emt 0:00:04]} Kg5 {[%emt 0:00:08]} 46. f6 {
[%emt 0:00:32]} Rf2 {[%emt 0:00:04]} 47. Rg8+ {[%emt 0:00:02]} Kh5 {[%emt 0:00:
08]} 48. Rh8+ {[%emt 0:00:42]} Kg4 {[%emt 0:00:01]} 49. Rxh3 {[%emt 0:00:02]}
Kxh3 {[%emt 0:00:01]} 50. Bc4 {[%emt 0:00:01]} Rf3+ {[%emt 0:00:05]} 51. Kb4 {
[%emt 0:00:02]} 1-0

[Event "Turning Torso Chess Event 2021"]
[Site "Malmoe"]
[Date "2021.08.22"]
[Round "14.4"]
[White "Brynell, Stellan"]
[Black "Smith, Axel"]
[Result "0-1"]
[ECO "D13"]
[WhiteElo "2422"]
[BlackElo "2451"]
[Annotator "RC"]
[PlyCount "180"]
[EventDate "2021.08.20"]
[EventType "tourn"]
[EventCountry "SWE"]
[SourceTitle "playchess.com"]
[Source "ChessBase"]
[SourceQuality "1"]
[TimeControl "900+5"]

1. d4 {[%emt 0:00:02]} Nf6 {[%emt 0:00:07]} 2. Nf3 {[%emt 0:00:04]} d5 {
[%emt 0:00:20]} 3. c4 {[%emt 0:00:36]} c6 {[%emt 0:00:02]} 4. cxd5 {[%emt 0:00:
04]} cxd5 {[%emt 0:00:02]} 5. Nc3 {[%emt 0:00:01]} Nc6 {[%emt 0:00:37]} 6. Bf4
{[%emt 0:00:02]} Nh5 {[%emt 0:00:06]} 7. Bd2 {[%emt 0:00:09]} e6 {[%emt 0:00:
21]} 8. Bg5 {[%emt 0:01:26]} Qb6 {[%emt 0:00:43]} 9. Qd2 {[%emt 0:00:07]} h6 {
[%emt 0:00:12]} 10. Bh4 {[%emt 0:00:04]} g5 {[%emt 0:00:46]} 11. g4 {[%emt 0:
02:09]} Nf6 {[%emt 0:00:22]} 12. Bg3 {[%emt 0:00:02]} Ne4 {[%emt 0:01:21]} 13.
Qc2 {[%emt 0:00:06]} Nxd4 {[%emt 0:04:03]} 14. Nxd4 {[%emt 0:00:23]} Nxg3 {
[%emt 0:00:51]} 15. hxg3 {[%emt 0:00:10]} Qxd4 {[%emt 0:00:01]} 16. e3 {
[%emt 0:00:15]} Qb4 {[%emt 0:00:11]} 17. a3 {[%emt 0:00:58]} Qa5 {[%emt 0:00:
22]} 18. Bb5+ {[%emt 0:00:57]} Bd7 {[%emt 0:00:02]} 19. Bxd7+ {[%emt 0:00:02]}
Kxd7 {[%emt 0:00:00]} 20. O-O {[%emt 0:00:05]} Bg7 {[%emt 0:00:40]} 21. Rfd1 {
[%emt 0:02:31]} Rac8 {[%emt 0:00:15]} 22. Qb3 {[%emt 0:00:07]} Bxc3 {[%emt 0:
00:13]} 23. bxc3 {[%emt 0:00:06]} Qxc3 {[%emt 0:00:41]} 24. Qxb7+ {[%emt 0:00:
10]} Rc7 {[%emt 0:00:05]} 25. Qb5+ {[%emt 0:00:10]} Ke7 {[%emt 0:00:21]} 26. a4
{[%emt 0:01:40]} Rhc8 {[%emt 0:00:07]} 27. Rab1 {[%emt 0:00:39]} Qc4 {[%emt 0:
00:04]} 28. Qb2 {[%emt 0:00:05]} Qxa4 {[%emt 0:00:53]} 29. Qg7 {[%emt 0:00:01]}
Qxg4 {[%emt 0:00:05]} 30. Qxh6 {[%emt 0:00:02]} Qf5 {[%emt 0:00:11]} 31. Qg7 {
[%emt 0:00:28]} Qf6 {[%emt 0:00:06]} 32. Qxf6+ {[%emt 0:01:08]} Kxf6 {[%emt 0:
00:01]} 33. Ra1 {[%emt 0:00:11]} g4 {[%emt 0:00:49]} 34. Kg2 {[%emt 0:00:12]}
Ke5 {[%emt 0:00:12]} 35. Ra6 {[%emt 0:00:37]} Rb8 {[%emt 0:00:19]} 36. Ra2 {
[%emt 0:00:50]} Rb6 {[%emt 0:00:15]} 37. Rd4 {[%emt 0:00:02]} f5 {[%emt 0:00:
05]} 38. Rd1 {[%emt 0:00:04]} a6 {[%emt 0:00:09]} 39. Rda1 {[%emt 0:00:03]}
Rcc6 {[%emt 0:00:05]} 40. Rd1 {[%emt 0:00:03]} Rd6 {[%emt 0:00:10]} 41. f3 {
[%emt 0:00:27]} gxf3+ {[%emt 0:00:06]} 42. Kxf3 {[%emt 0:00:01]} Rdc6 {[%emt 0:
00:11]} 43. Rd3 {[%emt 0:00:10]} Kd6 {[%emt 0:00:15]} 44. Rda3 {[%emt 0:00:08]}
Ke7 {[%emt 0:00:09]} 45. g4 {[%emt 0:00:07]} fxg4+ {[%emt 0:00:05]} 46. Kxg4 {
[%emt 0:00:01]} Kd6 {[%emt 0:00:07]} 47. Kf3 {[%emt 0:00:05]} Ke5 {[%emt 0:00:
02]} 48. Ke2 {[%emt 0:00:09]} Rd6 {[%emt 0:00:13]} 49. Ra5 {[%emt 0:00:10]} Kf5
{[%emt 0:00:13]} 50. R2a4 {[%emt 0:00:34]} Rb2+ {[%emt 0:00:10]} 51. Kf3 {
[%emt 0:00:06]} Rb3 {[%emt 0:00:37]} 52. Ke2 {[%emt 0:00:12]} Rbb6 {[%emt 0:00:
13]} 53. Kf3 {[%emt 0:00:05]} Ke5 {[%emt 0:00:04]} 54. Re4+ {[%emt 0:00:04]}
Kf6 {[%emt 0:00:00]} 55. Rea4 {[%emt 0:00:03]} Rdc6 {[%emt 0:00:01]} 56. Ra3 {
[%emt 0:00:09]} Ke5 {[%emt 0:00:01]} 57. R3a4 {[%emt 0:00:02]} Rc3 {[%emt 0:00:
17]} 58. Ra2 {[%emt 0:00:10]} Rbb3 {[%emt 0:00:17]} 59. Re2 {[%emt 0:00:01]}
Kf5 {[%emt 0:00:08]} 60. Kf2 {[%emt 0:00:11]} Ra3 {[%emt 0:00:04]} 61. Ra2 {
[%emt 0:00:06]} Rxa5 {[%emt 0:00:08]} 62. Rxa5 {[%emt 0:00:01]} Rc6 {[%emt 0:
00:02]} 63. Kf3 {[%emt 0:00:02]} Ke5 {[%emt 0:00:00]} 64. Ke2 {[%emt 0:00:04]}
Kd6 {[%emt 0:00:03]} 65. Kd3 {[%emt 0:00:02]} Kc7 {[%emt 0:00:06]} 66. Ra1 {
[%emt 0:00:06]} Kb6 {[%emt 0:00:05]} 67. Rb1+ {[%emt 0:00:01]} Ka7 {[%emt 0:00:
03]} 68. Ra1 {[%emt 0:00:04]} Rc4 {[%emt 0:00:03]} 69. Ra2 {[%emt 0:00:05]} Kb6
{[%emt 0:00:02]} 70. Rb2+ {[%emt 0:00:04]} Kc6 {[%emt 0:00:01]} 71. Ra2 {
[%emt 0:00:01]} Kb5 {[%emt 0:00:01]} 72. Rh2 {[%emt 0:00:18]} a5 {[%emt 0:00:
03]} 73. Rh6 {[%emt 0:00:02]} Re4 {[%emt 0:00:02]} 74. Rh8 {[%emt 0:00:01]} a4
{[%emt 0:00:04]} 75. Ra8 {[%emt 0:00:03]} Kb4 {[%emt 0:00:03]} 76. Rb8+ {
[%emt 0:00:01]} Ka3 {[%emt 0:00:17]} 77. Rb6 {[%emt 0:00:01]} Ka2 {[%emt 0:00:
03]} 78. Rb8 {[%emt 0:00:07]} a3 {[%emt 0:00:02]} 79. Rb6 {[%emt 0:00:02]} Ka1
{[%emt 0:00:02]} 80. Rb8 {[%emt 0:00:02]} a2 {[%emt 0:00:03]} 81. Rb6 {[%emt 0:
00:02]} Ra4 {[%emt 0:00:12]} 82. Kc2 {[%emt 0:00:07]} Rc4+ {[%emt 0:00:08]} 83.
Kd2 {[%emt 0:00:04]} e5 {[%emt 0:00:07]} 84. Rb5 {[%emt 0:00:02]} d4 {[%emt 0:
00:15]} 85. e4 {[%emt 0:00:27]} Rc3 {[%emt 0:00:07]} 86. Rb8 {[%emt 0:00:28]}
Re3 {[%emt 0:00:08]} 87. Kc2 {[%emt 0:00:01]} Rxe4 {[%emt 0:00:11]} 88. Rh8 {
[%emt 0:00:01]} Re2+ {[%emt 0:00:02]} 89. Kc1 {[%emt 0:00:02]} Rb2 {[%emt 0:00:
18]} 90. Re8 {[%emt 0:00:09]} d3 {[%emt 0:00:10]} 0-1